fUST/lending_fUST_20241218
["ID","MTS","AMOUNT","RATE_DAILY","PERIOD"]
[345861021,1734525046843,-509.62999266,0.00024657,6]
[345861023,1734525046853,-2297.66,0.00024657,6]
[345861025,1734525046862,-500.0,0.00024657,6]
[345861027,1734525046871,-1711.14,0.00024657,2]
[345861029,1734525046881,-500.0,0.00024657,6]
[345861031,1734525046890,-500.0,0.00024657,6]
[345861033,1734525046899,-500.0,0.00024657,6]
[345861035,1734525046909,-500.0,0.00024657,6]
[345861038,1734525046919,-500.0,0.00024657,6]
[345861039,1734525046928,-500.0,0.00024657,6]
[345861041,1734525046938,-500.0,0.00024657,6]
[345861043,1734525046947,-500.0,0.00024657,6]
[345861045,1734525046957,-168.0,0.00024657,6]
[345861047,1734525046966,-443.68761719,0.00024657,6]
[345861049,1734525046976,-501.85,0.00024657,6]
[345861051,1734525046986,-1107.08,0.00024657,6]
[345861054,1734525046995,-500.0,0.00024657,6]
[345861055,1734525047004,-500.0,0.00024657,6]
[345861058,1734525047014,-587.36,0.00024657,6]
[345861059,1734525047023,-1228.98,0.00024657,6]
[345861061,1734525047032,-1594.9,0.00024657,6]
[345861063,1734525047042,-500.0,0.00024657,6]
[345861065,1734525047051,-190.51087696,0.00024657,6]
[345861067,1734525047061,-443.99873521,0.00024657,6]
[345861070,1734525047073,-500.0,0.00024657,6]
[345861071,1734525047082,-509.95168609,0.00024657,6]
[345861073,1734525047092,-850.09,0.00024657,6]
[345861075,1734525047101,-500.0,0.00024657,6]
[345861077,1734525047110,-500.0,0.00024657,6]
[345861079,1734525047119,-500.0,0.00024657,6]
[345861081,1734525047129,-502.09321567,0.00024657,6]
[345861083,1734525047138,-500.0,0.00024657,6]
[345861085,1734525047147,-500.0,0.00024657,6]
[345861087,1734525047157,-500.0,0.00024657,6]
[345861089,1734525047167,-500.0,0.00024657,6]
[345861091,1734525047178,-501.60864552,0.00024657,6]
[345861093,1734525047187,-500.0,0.00024657,6]
[345861095,1734525047197,-500.0,0.00024657,6]
[345861097,1734525047206,-584.96784012,0.00024657,6]
[345861099,1734525047217,-500.0,0.00024657,6]
[345861101,1734525047226,-500.0,0.00024657,6]
[345861103,1734525047235,-604.00758954,0.00024657,6]
[345861105,1734525047244,-903.0,0.00024657,6]
[345861107,1734525047253,-500.0,0.00024657,6]
[345861109,1734525047262,-509.34965467,0.00024657,6]
[345861111,1734525047272,-361.14548647,0.00024657,6]
[345861113,1734525047283,-500.0,0.00024657,6]
[345861115,1734525047292,-382.75202268,0.00024657,6]
[345861117,1734525047301,-500.0,0.00024657,6]
[345861119,1734525047311,-500.0,0.00024657,6]
[345861121,1734525047320,-1445.51,0.00024657,6]
[345861123,1734525047329,-500.0,0.00024657,6]
[345861125,1734525047339,-1038.09,0.00024657,2]
[345861127,1734525047349,-500.0,0.00024657,6]
[345861129,1734525047358,-714.48,0.00024657,6]
[345861131,1734525047368,-511.35143946,0.00024657,6]
[345861133,1734525047377,-500.0,0.00024657,6]
[345861135,1734525047387,-500.0,0.00024657,6]
[345861137,1734525047396,-1174.63,0.00024657,6]
[345861139,1734525047405,-1174.63,0.00024657,6]
[345861141,1734525047416,-1174.63,0.00024657,6]
[345861143,1734525047425,-1174.63,0.00024657,6]
[345861145,1734525047436,-500.0,0.00024657,6]
[345861147,1734525047445,-500.0,0.00024657,6]
[345861149,1734525047454,-1174.63,0.00024657,6]
[345861151,1734525047463,-1174.63,0.00024657,6]
[345861153,1734525047472,-500.0,0.00024657,6]
[345861155,1734525047481,-1174.63,0.00024657,6]
[345861157,1734525047491,-1174.63,0.00024657,6]
[345861159,1734525047500,-1174.63,0.00024657,6]
[345861161,1734525047510,-1174.63,0.00024657,6]
[345861162,1734525047519,-1174.63,0.00024657,6]
[345861165,1734525047529,-500.0,0.00024657,6]
[345861166,1734525047538,-1174.63,0.00024657,6]
[345861169,1734525047550,-1174.63,0.00024657,6]
[345861171,1734525047559,-1174.63,0.00024657,6]
[345861173,1734525047568,-516.14,0.00024657,6]
[345861175,1734525047577,-1174.63,0.00024657,6]
[345861176,1734525047587,-1174.63,0.00024657,6]
[345861178,1734525047596,-755.9,0.00024657,6]
[345861180,1734525047605,-1174.63,0.00024657,6]
[345861182,1734525047614,-1174.63,0.00024657,6]
[345861185,1734525047624,-1174.63,0.00024657,6]
[345861186,1734525047633,-1174.63,0.00024657,6]
[345861188,1734525047643,-500.0,0.00024657,6]
[345861190,1734525047652,-1174.63,0.00024657,6]
[345861192,1734525047663,-1174.63,0.00024657,6]
[345861194,1734525047672,-1174.63,0.00024657,6]
[345861196,1734525047681,-1174.71542813,0.00024657,6]
[345861198,1734525047690,-610.72,0.00024657,6]
[345861200,1734525047700,-7152.12,0.00024657,6]
[345861202,1734525047709,-500.0,0.00024657,6]
[345861204,1734525047718,-500.0,0.00024657,6]
[345861206,1734525047727,-595.4,0.00024657,6]
[345861208,1734525047737,-500.0,0.00024657,6]
[345861210,1734525047746,-500.0,0.00024657,6]
[345861212,1734525047756,-502.35046755,0.00024657,6]
[345861214,1734525047765,-500.0,0.00024657,6]
[345861216,1734525047775,-522.81,0.00024657,2]
[345861218,1734525047784,-1291.55,0.00024657,6]
[345861220,1734525047793,-503.66271635,0.00024657,6]
[345861222,1734525047802,-544.73,0.00024657,6]
[345861224,1734525047812,-500.0,0.00024657,6]
[345861226,1734525047821,-500.0,0.00024657,6]
[345861228,1734525047830,-500.0,0.00024657,6]
[345861230,1734525047839,-500.0,0.00024657,6]
[345861232,1734525047848,-643.49,0.00024657,6]
[345861234,1734525047858,-2398.49,0.00024657,2]
[345861236,1734525047867,-748.78,0.00024657,6]
[345861238,1734525047876,-500.0,0.00024657,6]
[345861240,1734525047887,-570.40017744,0.00024657,6]
[345861242,1734525047896,-16977.34,0.00024657,6]
[345861244,1734525047905,-500.0,0.00024657,6]
[345861246,1734525047916,-500.0,0.00024657,6]
[345861248,1734525047926,-500.0,0.00024657,6]
[345861250,1734525047935,-307.38053425,0.00024657,6]
[345861252,1734525047945,-500.0,0.00024657,6]
[345861254,1734525047955,-500.0,0.00024657,6]
[345861256,1734525047964,-500.0,0.00024657,6]
[345861258,1734525047974,-500.0,0.00024657,6]
[345861260,1734525047983,-500.0,0.00024657,6]
[345861262,1734525047993,-500.0,0.00024657,6]
[345861264,1734525048003,-500.0,0.00024657,6]
[345861266,1734525048012,-14057.64,0.00024657,6]
[345861268,1734525048021,-4140.81,0.00024657,2]
[345861270,1734525048031,-4601.14,0.00024657,6]
[345861272,1734525048041,-848.58,0.00024657,6]
[345861274,1734525048051,-60503.21,0.00024657,6]
[345861276,1734525048061,-500.0,0.00024657,6]
[345861278,1734525048071,-1111.86,0.00024657,6]
[345861280,1734525048080,-614.98,0.00024657,6]
[345861282,1734525048090,-500.0,0.00024657,6]
[345861284,1734525048100,-500.0,0.00024657,6]
[345861286,1734525048110,-500.0,0.00024657,6]
[345861288,1734525048120,-3106.22,0.00024657,6]
[345861290,1734525048130,-503.47519204,0.00024657,6]
[345861292,1734525048139,-1176.0,0.00024657,6]
[345861294,1734525048149,-500.0,0.00024657,6]
[345861296,1734525048160,-500.72884686,0.00024657,6]
[345861298,1734525048170,-500.0,0.00024657,6]
[345861300,1734525048180,-6289.84,0.00024657,6]
[345861302,1734525048190,-6394.67,0.00024657,6]
[345861304,1734525048199,-500.0,0.00024657,6]
[345861306,1734525048210,-500.0,0.00024657,6]
[345861308,1734525048222,-500.0,0.00024657,6]
[345861310,1734525048232,-222.40287441,0.00024657,6]
[345861312,1734525048241,-270.31305682,0.00024657,6]
[345861314,1734525048251,-500.0,0.00024657,6]
[345861316,1734525048261,-500.0,0.00024657,6]
[345861318,1734525048270,-500.0,0.00024657,6]
[345861320,1734525048280,-500.0,0.00024657,6]
[345861322,1734525048290,-202.81213193,0.00024657,6]
[345861324,1734525048303,-609.61,0.00024657,6]
[345861326,1734525048313,-10395.66,0.00024657,6]
[345861328,1734525048322,-500.0,0.00024657,6]
[345861330,1734525048332,-504.70886002,0.00024657,6]
[345861332,1734525048341,-500.0,0.00024657,6]
[345861334,1734525048351,-500.0,0.00024657,6]
[345861336,1734525048360,-500.0,0.00024657,6]
[345861338,1734525048370,-500.0,0.00024657,6]
[345861340,1734525048380,-10000.0,0.00024657,2]
[345861342,1734525048390,-500.0,0.00024657,6]
[345861344,1734525048400,-502.97104915,0.00024657,6]
[345861346,1734525048411,-500.0,0.00024657,6]
[345861348,1734525048421,-1386.12,0.00024657,6]
[345861350,1734525048431,-500.0,0.00024657,6]
[345861352,1734525048440,-1079.7,0.00024657,6]
[345861353,1734525048450,-500.0,0.00024657,6]
[345861356,1734525048460,-500.0,0.00024657,6]
[345861358,1734525048469,-500.0,0.00024657,6]
[345861359,1734525048479,-574.69,0.00024657,6]
[345861361,1734525048489,-506.4171353,0.00024657,6]
[345861364,1734525048499,-500.0,0.00024657,6]
[345861366,1734525048508,-526.08526299,0.00024657,6]
[345861367,1734525048517,-362.27178597,0.00024657,6]
[345861369,1734525048528,-500.0,0.00024657,6]
[345861372,1734525048538,-383.95319155,0.00024657,6]
[345861374,1734525048548,-650.21,0.00024657,6]
[345861375,1734525048557,-511.22071801,0.00024657,6]
[345861377,1734525048567,-500.0,0.00024657,6]
[345861379,1734525048577,-833.76,0.00024657,6]
[345861381,1734525048586,-500.0,0.00024657,6]
[345861383,1734525048596,-404.54248027,0.00024657,6]
[345861385,1734525048605,-500.0,0.00024657,6]
[345861387,1734525048615,-535.74573633,0.00024657,6]
[345861389,1734525048625,-682.91,0.00024657,2]
[345861391,1734525048635,-500.0,0.00024657,6]
[345861393,1734525048645,-500.0,0.00024657,6]
[345861395,1734525048654,-7242.8,0.00024657,6]
[345861397,1734525048665,-5950.29,0.00024657,6]
[345861399,1734525048676,-3573.06,0.00024657,6]
[345861401,1734525048686,-500.0,0.00024657,6]
[345861403,1734525048696,-500.0,0.00024657,6]
[345861405,1734525048706,-15287.67,0.00024657,6]
[345861407,1734525048716,-501.86218377,0.00024657,6]
[345861409,1734525048725,-504.17017431,0.00024657,6]
[345861411,1734525048735,-500.0,0.00024657,6]
[345861413,1734525048745,-500.0,0.00024657,6]
[345861415,1734525048755,-718.08,0.00024657,6]
[345861417,1734525048765,-500.0,0.00024657,6]
[345861419,1734525048775,-8580.21,0.00024657,6]
[345861421,1734525048785,-500.0,0.00024657,6]
[345861423,1734525048795,-500.0,0.00024657,6]
[345861425,1734525048806,-500.0,0.00024657,6]
[345861427,1734525048816,-500.0,0.00024657,6]
[345861428,1734525048825,-3290.34,0.00024657,6]
[345861429,1734525048834,-500.0,0.00024657,6]
[345861430,1734525048843,-500.0,0.00024657,2]
[345861431,1734525048852,-500.0,0.00024657,6]
[345861432,1734525048861,-500.0,0.00024657,6]
[345861433,1734525048870,-500.0,0.00024657,6]
[345861434,1734525048879,-307.2821452,0.00024657,6]
[345861435,1734525048889,-7097.13,0.00024657,6]
[345861436,1734525048898,-3023.98,0.00024657,6]
[345861438,1734525048907,-509.68675333,0.00024657,6]
[345861440,1734525048919,-500.0,0.00024657,6]
[345861442,1734525048929,-2213.03,0.00024657,6]
[345861444,1734525048938,-500.0,0.00024657,6]
[345861446,1734525048948,-500.0,0.00024657,6]
[345861448,1734525048958,-500.0,0.00024657,6]
[345861450,1734525048969,-500.0,0.00024657,6]
[345861452,1734525048979,-500.0,0.00024657,6]
[345861454,1734525048989,-500.0,0.00024657,6]
[345861456,1734525048999,-500.0,0.00024657,6]
[345861458,1734525049009,-500.0,0.00024657,6]
[345861460,1734525049018,-792.36,0.00024657,6]
[345861462,1734525049029,-500.0,0.00024657,6]
[345861464,1734525049039,-500.0,0.00024657,6]
[345861466,1734525049049,-1385.66,0.00024657,6]
[345861467,1734525049059,-500.0,0.00024657,6]
[345861469,1734525049069,-500.0,0.00024657,6]
[345861471,1734525049079,-500.0,0.00024657,6]
[345861474,1734525049089,-500.0,0.00024657,6]
[345861476,1734525049099,-1305.13,0.00024657,6]
[345861477,1734525049109,-380.0,0.00024658,2]
[345861480,1734525049119,-563.3525309,0.00024658,2]
[345861481,1734525049129,-563.3525309,0.00024658,2]
[345861483,1734525049138,-563.3525309,0.00024658,2]
[345861485,1734525049148,-563.3525309,0.00024658,2]
[345861487,1734525049158,-563.3525309,0.00024658,2]
[345861489,1734525049171,-563.3525309,0.00024658,2]
[345861491,1734525049181,-563.3525309,0.00024658,2]
[345861493,1734525049191,-563.3525309,0.00024658,2]
[345861495,1734525049200,-563.3525309,0.00024658,2]
[345861497,1734525049209,-563.3525309,0.00024658,2]
[345861499,1734525049225,-563.3525309,0.00024658,2]
[345861501,1734525049236,-563.3525309,0.00024658,2]
[345861503,1734525049246,-563.3525309,0.00024658,2]
[345861505,1734525049256,-563.3525309,0.00024658,2]
[345861507,1734525049266,-563.3525309,0.00024658,2]
[345861509,1734525049276,-563.3525309,0.00024658,2]
[345861511,1734525049286,-563.3525309,0.00024658,2]
[345861513,1734525049297,-563.3525309,0.00024658,2]
[345861515,1734525049307,-563.3525309,0.00024658,2]
[345861518,1734525049318,-563.3525309,0.00024658,2]
[345861519,1734525049328,-563.3525309,0.00024658,2]
[345861521,1734525049338,-563.3525309,0.00024658,2]
[345861523,1734525049349,-563.3525309,0.00024658,2]
[345861525,1734525049359,-563.3525309,0.00024658,2]
[345861527,1734525049369,-563.3525309,0.00024658,2]
[345861530,1734525049379,-563.3525309,0.00024658,2]
[345861532,1734525049389,-563.3525309,0.00024658,2]
[345861534,1734525049398,-563.3525309,0.00024658,2]
[345861535,1734525049407,-563.3525309,0.00024658,2]
[345861538,1734525049420,-563.3525309,0.00024658,2]
[345861540,1734525049430,-563.3525309,0.00024658,2]
[345861541,1734525049440,-563.3525309,0.00024658,2]
[345861543,1734525049449,-563.3525309,0.00024658,2]
[345861545,1734525049458,-563.3525309,0.00024658,2]
[345861547,1734525049468,-563.3525309,0.00024658,2]
[345861549,1734525049478,-563.3525309,0.00024658,2]
[345861551,1734525049487,-563.3525309,0.00024658,2]
[345861553,1734525049497,-563.3525309,0.00024658,2]
[345861555,1734525049507,-563.3525309,0.00024658,2]
[345861558,1734525049517,-563.3525309,0.00024658,2]
[345861560,1734525049527,-563.3525309,0.00024658,2]
[345861562,1734525049536,-563.3525309,0.00024658,2]
[345861564,1734525049546,-563.3525309,0.00024658,2]
[345861566,1734525049556,-563.3525309,0.00024658,2]
[345861568,1734525049566,-563.3525309,0.00024658,2]
[345861570,1734525049576,-563.3525309,0.00024658,2]
[345861572,1734525049586,-563.3525309,0.00024658,2]
[345861574,1734525049596,-563.3525309,0.00024658,2]
[345861576,1734525049606,-563.3525309,0.00024658,2]
[345861578,1734525049616,-563.3525309,0.00024658,2]
[345861580,1734525049625,-392.07128279,0.00024673,2]
[345861582,1734525049635,-623.27596891,0.00024673,2]
[345861597,1734525049780,-609.72084285,0.00024673,2]
[345861599,1734525049790,-500.0,0.00024673,2]
[345861601,1734525049800,-508.56717984,0.00024673,2]
[345861603,1734525049809,-500.0,0.00024673,2]
[345861605,1734525049819,-500.0,0.00024673,2]
[345861607,1734525049828,-435.71909129,0.00024673,2]
[345861609,1734525049838,-283.02798714,0.00024673,2]
[345861611,1734525049848,-2357.153,0.00024674,15]
[345861613,1734525049857,-2041.91,0.000247,14]
[345861615,1734525049866,-6707.34,0.000247,2]
[345861617,1734525049876,-374.10916948,0.00024753,2]
[345861619,1734525049885,-419.03784334,0.00024864,2]
[345861621,1734525049895,-156.15459305,0.00024904,2]
[345861623,1734525049905,-299.61,0.00024931,6]
[345861625,1734525049915,-299.78060392,0.00024931,6]
[345861627,1734525049924,-500.0,0.00024931,6]
[345861629,1734525049934,-151.44846142,0.00024931,6]
[345861631,1734525049944,-1999.9999991,0.00024931,2]
[345861633,1734525049954,-500.0,0.00024931,6]
[345861635,1734525049964,-500.0,0.00024931,6]
[345861637,1734525049974,-502.09835294,0.00024931,6]
[345861639,1734525049984,-500.0,0.00024931,6]
[345861642,1734525049994,-497.52164717,0.00024931,6]
[345861644,1734525050004,-500.0,0.00024931,6]
[345861646,1734525050014,-522.84260659,0.00024931,6]
[345861648,1734525050024,-500.0,0.00024931,6]
[345861650,1734525050034,-615.19577772,0.00024931,6]
[345861652,1734525050043,-500.0,0.00024931,6]
[345861654,1734525050053,-500.0,0.00024931,6]
[345861656,1734525050062,-500.0,0.00024931,6]
[345861658,1734525050071,-500.0,0.00024931,6]
[345861660,1734525050080,-500.0,0.00024931,6]
[345861662,1734525050090,-510.82196816,0.00024931,6]
[345861664,1734525050100,-500.0,0.00024931,6]
[345861666,1734525050109,-435.85945055,0.00024931,6]
[345861668,1734525050118,-500.0,0.00024931,6]
[345861670,1734525050128,-500.0,0.00024931,6]
[345861672,1734525050137,-615.99790262,0.00024931,6]
[345861674,1734525050147,-500.0,0.00024931,6]
[345861676,1734525050157,-500.0,0.00024931,6]
[345861678,1734525050168,-369.32960235,0.00024931,6]
[345861680,1734525050178,-500.0,0.00024931,6]
[345861682,1734525050187,-523.48400304,0.00024931,6]
[345861684,1734525050197,-500.0,0.00024931,6]
[345861686,1734525050207,-500.0,0.00024931,6]
[345861688,1734525050219,-500.0,0.00024931,6]
[345861690,1734525050229,-500.0,0.00024931,6]
[345861692,1734525050238,-500.0,0.00024931,6]
[345861694,1734525050248,-500.0,0.00024931,6]
[345861696,1734525050259,-507.22,0.00024931,6]
[345861698,1734525050268,-500.0,0.00024931,6]
[345861700,1734525050277,-357.30116175,0.00024931,6]
[345861702,1734525050287,-500.0,0.00024931,6]
[345861704,1734525050298,-500.0,0.00024931,6]
[345861706,1734525050307,-200.0,0.00024931,6]
[345861708,1734525050317,-500.0,0.00024931,6]
[345861710,1734525050327,-500.0,0.00024931,6]
[345861712,1734525050336,-500.0,0.00024931,6]
[345861714,1734525050346,-504.17041852,0.00024931,6]
[345861716,1734525050355,-500.0,0.00024931,6]
[345861718,1734525050365,-652.55,0.00024931,6]
[345861720,1734525050374,-500.0,0.00024931,6]
[345861722,1734525050385,-501.66485991,0.00024931,6]
[345861724,1734525050395,-500.0,0.00024931,6]
[345861726,1734525050405,-500.0,0.00024931,6]
[345861728,1734525050415,-500.0,0.00024931,6]
[345861730,1734525050424,-500.0,0.00024931,6]
[345861732,1734525050434,-500.0,0.00024931,6]
[345861734,1734525050444,-441.90846092,0.00024931,6]
[345861736,1734525050453,-500.0,0.00024931,6]
[345861737,1734525050463,-503.0799392,0.00024931,6]
[345861739,1734525050472,-500.0,0.00024931,6]
[345861741,1734525050481,-500.0,0.00024931,6]
[345861744,1734525050491,-500.0,0.00024931,6]
[345861746,1734525050501,-500.0,0.00024931,6]
[345861748,1734525050510,-500.0,0.00024931,6]
[345861750,1734525050520,-500.0,0.00024931,6]
[345861752,1734525050530,-500.0,0.00024931,6]
[345861754,1734525050539,-500.0,0.00024931,6]
[345861756,1734525050549,-476.41925452,0.00024931,6]
[345861758,1734525050559,-500.0,0.00024931,6]
[345861760,1734525050568,-500.0,0.00024931,6]
[345861762,1734525050577,-500.0,0.00024931,6]
[345861764,1734525050587,-500.0,0.00024931,6]
[345861766,1734525050596,-500.0,0.00024931,6]
[345861768,1734525050605,-500.0,0.00024931,6]
[345861770,1734525050614,-500.0,0.00024931,6]
[345861772,1734525050623,-2179.92,0.00024931,6]
[345861774,1734525050633,-500.0,0.00024931,6]
[345861775,1734525050642,-938.78,0.00024931,6]
[345861777,1734525050651,-537.98,0.00024931,6]
[345861779,1734525050661,-500.0,0.00024931,6]
[345861782,1734525050672,-500.0,0.00024931,6]
[345861783,1734525050681,-405.76272229,0.00024931,6]
[345861785,1734525050691,-500.0,0.00024931,6]
[345861788,1734525050701,-500.0,0.00024931,6]
[345861790,1734525050711,-500.0,0.00024931,6]
[345861792,1734525050721,-701.35,0.00024931,6]
[345861794,1734525050730,-501.81,0.00024931,6]
[345861796,1734525050740,-500.0,0.00024931,6]
[345861797,1734525050749,-500.0,0.00024931,6]
[345861799,1734525050758,-500.0,0.00024931,6]
[345861801,1734525050768,-500.0,0.00024931,6]
[345861803,1734525050778,-202.46333655,0.00024931,6]
[345861805,1734525050787,-497.61360937,0.00024931,6]
[345861807,1734525050797,-500.0,0.00024931,6]
[345861809,1734525050806,-2340.8,0.00024931,6]
[345861811,1734525050816,-500.0,0.00024931,6]
[345861813,1734525050825,-500.0,0.00024931,6]
[345861815,1734525050835,-500.0,0.00024931,6]
[345861817,1734525050844,-622.75904203,0.00024931,6]
[345861820,1734525050854,-500.0,0.00024931,6]
[345861821,1734525050863,-500.0,0.00024931,6]
[345861824,1734525050873,-508.47627908,0.00024931,6]
[345861825,1734525050883,-500.0,0.00024931,6]
[345861827,1734525050892,-500.0,0.00024931,6]
[345861829,1734525050902,-446.88645787,0.00024931,6]
[345861832,1734525050911,-500.0,0.00024931,6]
[345861834,1734525050922,-1715.22,0.00024931,6]
[345861835,1734525050931,-500.0,0.00024931,6]
[345861837,1734525050941,-748.16,0.00024931,6]
[345861839,1734525050950,-500.0,0.00024931,6]
[345861841,1734525050960,-500.0,0.00024931,6]
[345861843,1734525050970,-500.0,0.00024931,6]
[345861845,1734525050980,-500.0,0.00024931,6]
[345861847,1734525050990,-500.0,0.00024931,6]
[345861849,1734525050999,-481.26744074,0.00024931,6]
[345861851,1734525051009,-500.0,0.00024931,6]
[345861853,1734525051018,-500.0,0.00024931,6]
[345861855,1734525051028,-500.0,0.00024931,6]
[345861857,1734525051037,-2297.66,0.00024931,6]
[345861859,1734525051047,-500.0,0.00024931,6]
[345861861,1734525051057,-1711.14,0.00024931,2]
[345861863,1734525051067,-500.0,0.00024931,6]
[345861865,1734525051076,-500.0,0.00024931,6]
[345861867,1734525051095,-500.0,0.00024931,6]
[345861869,1734525051106,-500.0,0.00024931,6]
[345861871,1734525051115,-500.0,0.00024931,6]
[345861873,1734525051125,-500.0,0.00024931,6]
[345861875,1734525051135,-500.0,0.00024931,6]
[345861877,1734525051144,-168.0,0.00024931,6]
[345861879,1734525051154,-501.85,0.00024931,6]
[345861881,1734525051164,-1107.08,0.00024931,6]
[345861883,1734525051173,-500.0,0.00024931,6]
[345861885,1734525051183,-500.0,0.00024931,6]
[345861887,1734525051192,-587.36,0.00024931,6]
[345861889,1734525051201,-1228.98,0.00024931,6]
[345861891,1734525051213,-1594.9,0.00024931,6]
[345861892,1734525051222,-500.0,0.00024931,6]
[345861894,1734525051231,-500.0,0.00024931,6]
[345861896,1734525051241,-850.09,0.00024931,6]
[345861898,1734525051250,-500.0,0.00024931,6]
[345861900,1734525051260,-511.47885831,0.00024931,6]
[345861902,1734525051269,-500.0,0.00024931,6]
[345861904,1734525051278,-500.0,0.00024931,6]
[345861906,1734525051288,-500.0,0.00024931,6]
[345861908,1734525051297,-500.0,0.00024931,6]
[345861910,1734525051307,-500.0,0.00024931,6]
[345861912,1734525051316,-500.0,0.00024931,6]
[345861914,1734525051326,-500.0,0.00024931,6]
[345861916,1734525051335,-500.0,0.00024931,6]
[345861918,1734525051344,-903.0,0.00024931,6]
[345861920,1734525051353,-500.0,0.00024931,6]
[345861922,1734525051362,-500.0,0.00024931,6]
[345861924,1734525051372,-500.0,0.00024931,6]
[345861926,1734525051381,-500.0,0.00024931,6]
[345861928,1734525051390,-1445.51,0.00024931,6]
[345861930,1734525051399,-500.0,0.00024931,6]
[345861932,1734525051409,-500.0,0.00024931,6]
[345861934,1734525051420,-714.48,0.00024931,6]
[345861936,1734525051429,-505.50590321,0.00024931,6]
[345861938,1734525051439,-500.0,0.00024931,6]
[345861939,1734525051448,-500.0,0.00024931,6]
[345861941,1734525051457,-500.0,0.00024931,6]
[345861943,1734525051467,-516.14,0.00024931,6]
[345861945,1734525051476,-755.9,0.00024931,6]
[345861947,1734525051486,-500.0,0.00024931,6]
[345861949,1734525051495,-610.72,0.00024931,6]
[345861951,1734525051504,-7152.12,0.00024931,6]
[345861953,1734525051514,-500.0,0.00024931,6]
[345861955,1734525051523,-500.0,0.00024931,6]
[345861957,1734525051532,-595.4,0.00024931,6]
[345861959,1734525051541,-500.0,0.00024931,6]
[345861961,1734525051550,-500.0,0.00024931,6]
[345861963,1734525051560,-522.81,0.00024931,2]
[345861965,1734525051569,-1291.55,0.00024931,6]
[345861967,1734525051578,-544.73,0.00024931,6]
[345861969,1734525051587,-500.0,0.00024931,6]
[345861971,1734525051597,-500.0,0.00024931,6]
[345861972,1734525051606,-500.46507948,0.00024931,6]
[345861974,1734525051615,-649.25479481,0.00024931,6]
[345861976,1734525051625,-643.49,0.00024931,6]
[345861978,1734525051634,-2398.49,0.00024931,2]
[345861980,1734525051643,-748.78,0.00024931,6]
[345861982,1734525051653,-500.0,0.00024931,6]
[345861984,1734525051662,-16977.34,0.00024931,6]
[345861986,1734525051672,-500.0,0.00024931,6]
[345861988,1734525051682,-500.0,0.00024931,6]
[345861990,1734525051691,-500.0,0.00024931,6]
[345861992,1734525051700,-500.0,0.00024931,6]
[345861994,1734525051710,-500.0,0.00024931,6]
[345861996,1734525051719,-500.0,0.00024931,6]
[345861998,1734525051729,-522.02761904,0.00024931,6]
[345862000,1734525051738,-500.0,0.00024931,6]
[345862002,1734525051747,-500.0,0.00024931,6]
[345862003,1734525051756,-14057.64,0.00024931,6]
[345862005,1734525051765,-4140.81,0.00024931,2]
[345862007,1734525051775,-4601.14,0.00024931,6]
[345862009,1734525051784,-848.58,0.00024931,6]
[345862011,1734525051794,-60503.21,0.00024931,6]
[345862013,1734525051803,-502.46695472,0.00024931,6]
[345862016,1734525051813,-1111.86,0.00024931,6]
[345862017,1734525051822,-614.98,0.00024931,6]